Cogmind - Beta 10 X2 @@@ ROGUE MODE // 2020.09.01 @ 16:06:26 Player: PhenomPhear Result: Destroyed by D-53 Grenadier with Mini Grenade Launcher Performance ------------- Evolutions (0) 0 Regions Visited (2) 400 Robots Destroyed (35) 175 Value Destroyed (415) 415 Prototype IDs (0) 0 Alien Tech Used (0) 0 Bonus (0) 0 TOTAL SCORE: 990 Bonus ------- None Cogmind --------- Core Integrity 0/250 Matter 46/300 Energy 64/100 System Corruption 0% Temperature Cool (0) Movement Treading (180) Ox1 Location -10/Mines Parts ------- > --- POWER (1) -------- (None) > --- PROPULSION (2) --- Light Treads > --- UTILITY (2) ------ Large Storage Unit Large Storage Unit > --- WEAPON (2) ------- Mining Laser > --- INVENTORY (16) --- Large Matter Pod (0) Armor Integrity Analyzer Hardened Light Armor Plating Hardened Light Armor Plating Hardened Light Armor Plating Hardened Light Armor Plating Mining Claw Peak State ------------ > --- POWER ------------ Ion Engine > --- PROPULSION ------- Light Treads Light Treads > --- UTILITY ---------- Large Storage Unit Large Storage Unit > --- WEAPON ----------- Assault Rifle Grenade Launcher > --- INVENTORY -------- Light Ion Engine Wheel Wheel Large Matter Pod Large Matter Pod Armor Integrity Analyzer Hardened Light Armor Plating Hardened Light Armor Plating Hardened Light Armor Plating Hardened Light Armor Plating Medium Laser Medium Laser Beam Cannon Assault Rifle Light Assault Rifle Mining Laser [Rating: 9] Favorites ----------- Power Ion Engine Engine Ion Engine Propulsion Light Treads Treads Light Treads Wheel Wheel Utility Large Storage Unit Storage Large Storage Unit Weapon Assault Rifle Energy Gun Medium Laser Ballistic Gun Assault Rifle Launcher Grenade Launcher Special Weapon Mining Laser Slashing Weapon Mining Claw Build | -11 -10 -10 ------- Run | Scr Mat Min Slots Evolved . | . . . Power . | . . . Propulsion . | . . . Utility . | . . . Weapon . | . . . Parts Attached 24 | 6 5 13 Power 2 | 1 . 1 Engine 2 | 1 . 1 Core . | . . . Reactor . | . . . Propulsion 4 | 2 . 2 Treads 3 | 2 . 1 Leg . | . . . Wheel 1 | . . 1 Hover . | . . . Flight . | . . . Utility 3 | 1 2 . Device . | . . . Storage 3 | 1 2 . Processor . | . . . Hackware . | . . . Protection . | . . . Artifact . | . . . Weapon 15 | 2 3 10 Energy Gun 2 | 1 . 1 Energy Cannon . | . . . Ballistic Gun 5 | 1 . 4 Ballistic Cannon . | . . . Launcher 4 | . 2 2 Special Weapon 2 | . . 2 Impact Weapon . | . . . Slashing Weapon 2 | . 1 1 Piercing Weapon . | . . . Special Melee Weapon . | . . . Unidentified Prototypes . | . . . Parts Lost 11 | . . 11 Power 2 | . . 2 Propulsion 3 | . . 3 Utility . | . . . Weapon 6 | . . 6 Highest Loss Streak 7 | . . 7 Average Slot Usage (%) 98 | . 99 91 Engine 13 | . 14 12 Treads 26 | . 28 21 Storage 27 | . 27 28 Ballistic Gun 14 | . 14 14 Launcher 12 | . 13 8 Naked Turns . | . . . Heaviest Build 42 | 13 42 42 Greatest Support 40 | 40 40 40 Greatest Overweight (x) 3 | 1 1 3 Average Overweight (x) . | . . 1 Largest Inventory Capacity 16 | 6 16 16 Average Capacity 15 | 5 15 16 Most Carried 16 | . 16 16 Average Carried 11 | . 11 14 Final Capacity 16 | 6 16 16 Final Carried 16 | . 16 7 Class Distribution -------------------- 100% | Mutant Dominant Class ---------------- Mutant | -10/Materials Mutant | -10/Mines Resources | -11 -10 -10 ----------- Run | Scr Mat Min Matter Collected 544 | 224 237 83 Remotely . | . . . Salvage Created 341 | . 276 65 Parts 42 | . 34 8 Haulers Intercepted 2 | . 2 . Recyclers Shooed . | . . . Parts Field Recycled . | . . . Retrieved Matter . | . . . Parts Self-Destructed . | . . . Prevented . | . . . Kills | -11 -10 -10 ------- Run | Scr Mat Min Combat Hostiles Destroyed 27 | . 8 19 Guns 2 | . . 2 Cannons 1 | . . 1 AOE 24 | . 8 16 Classes Destroyed 9 | . 7 2 Worker 1 | . 1 . Tunneler 1 | . 1 . Hauler 2 | . 2 . Operator 2 | . 2 . Watcher 2 | . 2 . Swarmer 9 | . 3 6 Grunt 5 | . 5 . Demolisher 1 | . . 1 Assembled 12 | . . 12 Best Kill Streak 13 | . 6 13 Combat Bots Only 13 | . 6 13 Max Kills in Single Turn 3 | . 3 3 Gunslinging . | . . . Exploded 3 | . 3 3 Melee . | . . . Uniques/NPCs Destroyed . | . . . Combat | -11 -10 -10 -------- Run | Scr Mat Min Damage Taken 1431 | . 108 1323 Core 250 | . 10 240 Absorbed by Shields . | . . . Core Remaining (%) 100 | 100 . . Volleys Fired 45 | . 16 29 Largest 2 | . 1 2 Hottest 100 | . 30 100 Shots Fired 48 | . 16 32 Gun 12 | . . 12 Cannon . | . . . Launcher 34 | . 16 18 Special 2 | . . 2 Kinetic 9 | . . 9 Thermal 5 | . . 5 Explosive 34 | . 16 18 Electromagnetic . | . . . Robot Hit Streak 6 | . 3 6 Robot Miss Streak 1 | . 1 1 Penetration Max . | . . . Secondary Targets . | . . . Shots Hit Robots 20 | . 6 14 Core Hits 66 | . 26 40 Critical Hits . | . . . Critical Kills . | . . . Critical Parts Destroyed . | . . . Melee Attacks 1 | . 1 . Impact . | . . . Slashing 1 | . 1 . Piercing . | . . . Sneak Attacks 1 | . 1 . Combat Hostiles . | . . . Follow-up Attacks . | . . . Damage Inflicted 2121 | . 836 1285 Guns 139 | . . 139 Cannons . | . . . Explosions 1862 | . 764 1098 Melee 72 | . 72 . Ramming . | . . . Kinetic 102 | . . 102 Thermal 85 | . . 85 Explosive 1862 | . 764 1098 Electromagnetic . | . . . Impact . | . . . Slashing 72 | . 72 . Piercing . | . . . Highest Corruption . | . . . Average Corruption . | . . . Corruption Purged . | . . . Overload Shots . | . . . Overflow Damage 40 | . 5 35 Projectiles . | . . . Explosions 40 | . 5 35 Melee . | . . . Knockbacks . | . . . Impact . | . . . Kinetic . | . . . Secondary . | . . . Self-Inflicted Damage 153 | . . 153 Shots 5 | . . 5 Rammed . | . . . Targets Rammed . | . . . Kicked . | . . . Crushed . | . . . Highest Temperature 40 | . 10 40 Average Temperature 14 | . 4 16 Received Heat Transfer 57 | . 57 . Siege Activations . | . . . Robots Corrupted . | . . . Combat Hostiles . | . . . Parts Fried . | . . . Impact Corruptions . | . . . Robots Melted . | . . . Combat Hostiles . | . . . Parts Melted . | . . . Heat Transferred 211 | . . 211 Parts Sabotaged . | . . . Parts Stolen . | . . . Parts Stripped . | . . . Power Chain Reactions . | . . . Missiles Intercepted . | . . . Alert | -11 -10 -10 ------- Run | Scr Mat Min Peak Influence 210 | . 210 200 Average Influence 100 | . 100 136 Maximum Alert Level 1 | . 1 1 Low Security (%) 83 | 100 79 99 Level 1 16 | . 20 . Level 2 . | . . . Level 3 . | . . . Level 4 . | . . . Level 5 . | . . . High Security . | . . . Max Security . | . . . Squads Dispatched 2 | . 2 . Investigation 1 | . 1 . Extermination . | . . . Reinforcement 1 | . 1 . Assault . | . . . Garrison . | . . . Intercept . | . . . Construction Impeded . | . . . Haulers Reinforced . | . . . Stealth | -11 -10 -10 --------- Run | Scr Mat Min Distress Signals . | . . . Communications Jammed . | . . . Distress Signals . | . . . Times Spotted 37 | . 17 20 Peak Tracking Total 13 | . 6 13 Tactical Retreats 3 | . 3 . Traps | -11 -10 -10 ------- Run | Scr Mat Min Traps Triggered 1 | . 1 . Indirectly . | . . . Trap Hack Attempts . | . . . Triggered . | . . . Disarmed . | . . . Reprogrammed . | . . . Reused . | . . . Traps Extracted . | . . . Installed . | . . . Triggered . | . . . Machines | -11 -10 -10 ---------- Run | Scr Mat Min Machines Disabled . | . . . Max in Single Turn . | . . . Machines Sabotaged . | . . . Garrisons Compromised . | . . . Overloaded Fab Kills . | . . . Fab Network Shutdowns . | . . . Hacking | -11 -10 -10 --------- Run | Scr Mat Min Machines Accessed 8 | . 8 . Terminals 6 | . 6 . Fabricators . | . . . Repair Stations . | . . . Recycling Units 2 | . 2 . Scanalyzers . | . . . Garrison Access . | . . . Total Hacks 19 | . 19 . Successful 16 | . 16 . Failed 3 | . 3 . Catastrophic 1 | . 1 . Database Lockouts . | . . . Manual 14 | . 14 . Terminals 15 | . 15 . Fabricators . | . . . Repair Stations . | . . . Recycling Units 4 | . 4 . Scanalyzers . | . . . Garrison Access . | . . . Terminal Hacks 8 | . 8 . Robot Analysis 3 | . 3 . Branch Access Points 1 | . 1 . Alert Level 1 | . 1 . Dispatch Records 1 | . 1 . Hauler Manifests 1 | . 1 . Zone Layout 1 | . 1 . Fabricator Hacks . | . . . Repair Station Hacks . | . . . Recycling Unit Hacks 2 | . 2 . Retrieve Components 2 | . 2 . Scanalyzer . | . . . Garrison Access Hacks . | . . . Unauthorized Hacks 6 | . 6 . Terminals 4 | . 4 . Botnet 4 | . 4 . Fabricators . | . . . Repair Stations . | . . . Recycling Units 2 | . 2 . Reject 2 | . 2 . Scanalyzers . | . . . Garrison Access . | . . . Data Cores Recovered 1 | . 1 . Used . | . . . Hacking Detections 4 | . 4 . Full Trace Events . | . . . Feedback Events . | . . . Feedback Blocked . | . . . Robot Schematics Acquired . | . . . Robots Built . | . . . Matter . | . . . Time . | . . . Total Robot Build Rating . | . . . Part Schematics Acquired . | . . . Parts Built . | . . . Matter . | . . . Time . | . . . Total Part Build Rating . | . . . Parts Repaired . | . . . Time . | . . . Parts Recycled . | . . . Recycled Matter . | . . . Retrieved Matter . | . . . Retrieved Components 10 | . 10 . Parts Scanalyzed . | . . . Part Schematics Acquired . | . . . Parts Damaged . | . . . Bothacking | -11 -10 -10 ------------ Run | Scr Mat Min Used RIF Installer . | . . . Robots Hacked . | . . . Non-combat . | . . . Combat . | . . . Robot Hacks Applied . | . . . Relay Couplers Released . | . . . Robots Rewired . | . . . Allies Hacked . | . . . Hacks Repelled . | . . . Allies | -11 -10 -10 -------- Run | Scr Mat Min Total Allies . | . . . Largest Group . | . . . Highest-Rated Group . | . . . Highest-Rated Ally . | . . . Total Orders . | . . . Ally Attacks . | . . . Total Damage . | . . . Kills . | . . . Allies Corrupted . | . . . Allies Melted . | . . . Intel | -11 -10 -10 ------- Run | Scr Mat Min Robot Analysis Total 3 | . 3 . Derelict Logs Recovered . | . . . Drone Launches . | . . . Drone Recoveries . | . . . Exploration | -11 -10 -10 ------------- Run | Scr Mat Min Turns Passed 1445 | 78 1149 218 Spaces Moved 730 | 50 604 76 Core 11 | 11 . . Treads 715 | 39 604 72 Legs . | . . . Wheels 4 | . . 4 Hover . | . . . Flight . | . . . Fastest Speed 50 | 50 160 110 Average Speed 176 | 140 179 175 Slowest Speed 180 | 160 180 180 Overloaded Moves . | . . . Propulsion Burnouts . | . . . Robots Hopped . | . . . Cave-ins Triggered . | . . . Exploration Rate (%) 37 | 4 90 17 Regions Visited 2 Branch Regions 1 Pre-discovered Areas . | . . . Known Exits Taken 1 | . 1 . Unknown Exits Taken 1 | 1 . . Scrap Searched 1 | . . 1 Spaces Dug 32 | . 21 11 Terrain Destroyed 210 | . 103 107 Melee . | . . . Projectile . | . . . AOE 210 | . 103 107 Actions | -11 -10 -10 --------- Run | Scr Mat Min Total 830 | 55 652 123 Wait 4 | . . 4 Move 728 | 49 603 76 Hop . | . . . Pick Up 21 | . 21 . Fast Attach 7 | 6 1 . Attach 8 | . . 8 Detach . | . . . Swap 9 | . 4 5 Drop 7 | . 6 1 Fire 45 | . 16 29 Melee 1 | . 1 . Ram . | . . . Kick . | . . . Crush . | . . . Escape Stasis . | . . . Rewire . | . . . Trap . | . . . Miscellaneous . | . . . Route ------- -11/Scrapyard -10/Materials (discovered 5 exits: [*Mat x3] / *Min x2) -10/Mines History --------- Turn | Location | Event 10 | -11/Scrapyard | Discovered new exit (range 16) 79 | -11/Scrapyard | Entered Materials 336 | -10/Materials | Build established: Mutant 346 | -10/Materials | Identified exit to Mines 372 | -10/Materials | Discovered new exit (range 16) 627 | -10/Materials | Discovered new exit (range 15) 1015 | -10/Materials | Discovered new exit (range 16) 1228 | -10/Materials | Entered Mines 1323 | -10/Mines | Assembled infested the area 1378 | -10/Mines | Destroyed 13 combat bots 1394 | -10/Mines | Lost 4 parts (1p1n2w) 1423 | -10/Mines | Core integrity fell below 50% 1434 | -10/Mines | Core integrity fell below 20% 1446 | -10/Mines | Destroyed by D-53 Grenadier with Mini Grenade Launcher Last Messages --------------- 01427_ Lgt. Treads destroyed. 01427_ Lgt. Ion Engine destroyed. 01427_ U-05 Engineer builds a Wall. 01428_ The unstable cave ceiling collapses. 01433_ Wheel destroyed. 01433_ Lgt. Assault Rifle destroyed. 01435_ The unstable cave ceiling collapses. 01435_ D-53 Grenadier destroyed. 01436_ The unstable cave ceiling collapses. 01436_ U-05 Engineer builds a Wall. 01437_ The unstable cave ceiling collapses. 01437_ Destroyed Shock Absorption System. 01438_ The unstable cave ceiling collapses. 01441_ Assault Rifle destroyed. 01442_ The unstable cave ceiling collapses. 01443_ Assault Rifle destroyed. 01444_ The unstable cave ceiling collapses. 01445_ Dropped Lrg. Matter Pod. 01446_ Extracted 48 matter. 01446_ The unstable cave ceiling collapses. Map ----- +----------------------------------------------------+ | ?????????????????????????????????????????????????? | | ?????????????????????????????????????????????????? | | ?????????????????????????????????????????????????? | | ?????????????????????????????????????????????????? | | ?????????????????????????????????????????????????? | | ?????????????????????????????????????????????????? | | ?????????????????????????????????????????????????? | | ?????????????????????????#???????????????????????? | | ????????????????????????? ???????????????????????? | | ???????????????? ??????? #??????????????????????? | | ????????????????? ?????? #??????????????????????? | | ?????????????????# ????## ##?????????????????????? | | ?????????????????# ???# [ #?????????????????????? | | ?????????????????# #??# % ##????????????????????? | | ???????????????### ### #????????????????????? | | ?????????????### # #????????????????????? | | ???????????# # [ #???????????##???????? | | ???????????# # =!* ##?????????? ???????? | | ?????????? # # #!=%## ## #?????????# #???????? | | ????????? # ###% #?????????# #???????? | | ????????? u%*# # ##????????# #???????? | | ????????? %## #d r #????????# #???????? | | ????????? # ## # #????????# #???????? | | ?????????? # # # #????????# #???????? | | ???????????### ### #????????# #####???? | | ?????????????###???## @ #???????## ## ##### | | ????????????????????# # #####???# ! # | | ????????????????????# ### ##?## = =* # | | ????????????????????## ## ### = # | | ?????????????????????## ## ## * """# | | ???????????????????######### #?# """# | | ??????????????????## ##??# #?## """ ## """# | | ??????????????????# #??# #?## """ ## # | | ??????????????????# #### ### """ ######## | | ??????????????????## """ #??????? | | ???????????????????## ##??????? | | ????????????????????## ####### ########???????? | | ?????????????????????####?????## ##??????????????? | | ???????????????????????????????###???????????????? | | ?????????????????????????????????????????????????? | | ?????????????????????????????????????????????????? | | | | | | | | | | | | | | | | | | | +----------------------------------------------------+ Best States ------------- Heat Dissipation 25 Energy Generation 10 Energy Capacity 250 Matter Stores 300 Matter Capacity 300 Sight Range 16 Terrain Scan Density 10 Evasion (%) 40 Recoil Reduction 2 Item Schematics ----------------- None Robot Schematics ------------------ None Fabricated ------------ Nothing Alien Tech Used ----------------- None Achievements -------------- None Challenges ------------ None Game ------ Seed ThunderWaveElectrolaser Manual? 0 Play Time 00:17:00 Cumulative 1063.3 hours Start 2020.09.01 @ 15:48:23 End 2020.09.01 @ 16:06:26 Sessions 1 Manual Loads 0 Difficulty Rogue Special Mode None Game No. 652 Rogue 652 Adventurer 0 Explorer 0 Win Type - Total 18 Types 10/1/4/3/0/0/0 Lore% 92 Gallery% 93 Achievement% 81 Wizard Run 0 Options --------- ASCII 0 Keyboard 0 Movement Mouse Keybinds 0 Fullscreen 1 Font 24/Smallcaps Map View 76x50 Tactical HUD 1 Map Filters NONE Filters NONE Steam 1 RUN: 79ec4882-3b6f-4ea7-8557-5c0b5eb909e1